{"text_format":"2","workbook":"xlsx","n_sheets":22,"sheets":["Költségösszesítő","(54-56) személyi+járulék","(51) anyagköltség ","(52) igénybe vett szolg","(53) egyéb szolgáltatások","(11) immat jav beszerz","(12) Ingatlan","(13) műszaki berendezések","(14) egyéb berendezések","Ált.ktg. (54-56) személyi","Ált.ktg. (51) anyagköltség","Ált.ktg. (52) Igénybe vett szol","Ált.ktg. (53) egyéb szolg.","Ált.ktg. (11) immat","Ált.ktg. (12) Ingatlan","Ált. ktg. (13) műszaki ber.","Ált.ktg. (14) egyéb ber.","Költségátcsoportosítás tábla","(LNY) lemondó nyilatkozat","(NYF)nyilatkozat függetlenségre","nyilatkozat a kettős elszámolás","támogatás típusai"],"not_rendered":{"charts":0,"images":0,"macros":0,"external_links":0,"defined_names":13,"comments":0,"pivot_tables":0},"unopened":[],"bounds":{"document_bytes":16777216,"sheet_cells":100000,"run_cost":"one","rows_first":2000,"rows_last":500,"rows_between":2000,"halvings":0,"cell_chars":16384,"cell_head_chars":4096},"cells_cut":0,"cells_raw":0,"read":"whole","date_system":"1900"}

{"sheet":"Költségösszesítő","index":0,"n_rows":54,"n_cols":4,"rows_kept":54,"cut":false,"hidden":false,"merged":[[7,0,7,2],[7,3,7,5],[38,1,38,2],[39,1,39,2],[38,3,38,5],[39,3,39,5],[35,1,35,2],[36,1,36,2],[37,1,37,2],[35,3,35,5],[36,3,36,5],[37,3,37,5],[34,3,34,5],[8,0,8,2],[8,3,8,5],[9,0,9,2],[0,0,0,5],[1,0,1,5],[3,0,3,5],[5,0,5,5],[6,0,6,5],[9,3,9,5],[10,0,10,2],[10,3,10,5],[11,0,11,2],[11,3,11,5],[12,0,12,2],[12,3,12,5],[13,0,13,2],[13,3,13,5],[14,0,14,2],[14,3,14,5],[15,0,15,2],[15,3,15,5],[16,0,16,2],[16,3,16,5],[17,0,17,1],[17,3,19,5],[18,0,18,2],[19,0,19,1],[20,0,20,2],[20,3,20,5],[21,0,30,0],[31,0,40,0],[21,1,21,2],[22,1,22,2],[23,1,23,2],[24,1,24,2],[25,1,25,2],[26,1,26,2],[27,1,27,2],[28,1,28,2],[29,1,29,2],[30,1,30,2],[31,1,31,2],[32,1,32,2],[33,1,33,2],[34,1,34,2],[50,0,50,1],[51,0,51,4],[52,0,52,2],[40,3,40,5],[40,1,40,2],[53,0,53,3],[41,1,41,2],[43,0,44,5],[47,0,47,5],[49,4,49,5],[41,3,41,5],[21,3,21,5],[22,3,22,5],[23,3,23,5],[24,3,24,5],[25,3,25,5],[31,3,31,5],[32,3,32,5],[33,3,33,5],[26,3,26,5],[27,3,27,5],[28,3,28,5],[29,3,29,5],[30,3,30,5]]}
["Egy példányban kitöltve, eredeti aláírással és bélyegzéssel ellátva kell benyújtani."]
["Az űrlap másolható, alakját és tartalmát kérjük, ne változtassa meg!"]
[]
["Elszámolt költségek összesítő"]
[]
["Számviteli bizonylat a(z) ……………...számú támogatói dokumentumban foglalt források felhasználásának elszámolásához"]
["A bizonylat formájára és tartalmára a számvitelről szóló 2000. évi C. törvény előírásai az irányadók"]
["Kedvezményezett:",null,null,"Támogatást nyújtó:"]
[null,null,null,"Nemzeti Kutatási, Fejlesztési és Innovációs Hivatal"]
["Kedvezményezett intézmény neve:………………………………",null,null,"címe: 1072 Budapest, Kéthly Anna tér 1."]
[null,null,null,"Magyar Államkincstárnál vezetett  számla"]
["címe: ……………………………………………………",null,null,"Megnevezése: "]
["Adóazonosító száma: …………………………………",null,null,"Nemzeti Kutatási, Fejlesztési és Innovációs Alap, Előirányzat-felhasználási keretszámla: "]
["Számlavezető intézet: ………………………………………..…..",null,null,"száma: "]
[null,null,null,"10032000-00334806-00000000"]
["Pénzforgalmi jelzőszáma:",null,null,"AHT azonosító:  "]
["………………………………………………..………..",null,null,348962]
["Teljesítés időpontja: (*)",null,"Bizonylat kelte:","Elszámolási bizonylat sorszáma: (**)"]
["Program és alprogram neve:"]
["         év        hó       nap",null,"         év        hó       nap"]
["Költség fajta (Ft-ban)",null,null,"Elszámolt Támogatás összege (Ft.)"]
["Kutatás közvetlen költsége","54. Bérköltség",null,{"$f":"'(54-56) személyi+járulék'!N28","v":0}]
[null,"55. Személyi jellegű egyéb kifizetések - egyéb",null,{"$f":"'(54-56) személyi+járulék'!K28","v":0}]
[null,"56. Bérjárulék",null,{"$f":"'(54-56) személyi+járulék'!Q28","v":0}]
[null,"51. Anyagköltség",null,{"$f":"'(51) anyagköltség '!O29","v":0}]
[null,"52. Igénybe vett szolgáltatások költségei",null,{"$f":"'(52) igénybe vett szolg'!O29","v":0}]
[null,"53. Egyéb szolgáltatások költségei",null,{"$f":"'(53) egyéb szolgáltatások'!O29","v":0}]
[null,"11. Immateriális javak",null,{"$f":"'(11) immat jav beszerz'!R27","v":0}]
[null,"12. Ingatlan",null,{"$f":"'(12) Ingatlan'!R27","v":0}]
[null,"13. Műszaki berendezések, gépek, járművek",null,{"$f":"'(13) műszaki berendezések'!R27","v":0}]
[null,"14. Egyéb berendezések, gépek, járművek",null,{"$f":"'(14) egyéb berendezések'!R27","v":0}]
["Kutatás közvetett költsége (Általános költségek)","54. Bérköltség",null,{"$f":"'Ált.ktg. (54-56) személyi'!N28","v":0}]
[null,"55. Személyi jellegű egyéb kifizetések - egyéb",null,{"$f":"'Ált.ktg. (54-56) személyi'!K28","v":0}]
[null,"56. Bérjárulék",null,{"$f":"'Ált.ktg. (54-56) személyi'!Q28","v":0}]
[null,"51. Anyagköltség",null,{"$f":"'Ált.ktg. (51) anyagköltség'!O29","v":0}]
[null,"52. Igénybe vett szolgáltatások költségei",null,{"$f":"'Ált.ktg. (52) Igénybe vett szol'!O29","v":0}]
[null,"53. Egyéb szolgáltatások költségei",null,{"$f":"'Ált.ktg. (53) egyéb szolg.'!O29","v":0}]
[null,"11. Immateriális javak",null,{"$f":"'Ált.ktg. (11) immat'!R27","v":0}]
[null,"12. Ingatlan",null,{"$f":"'Ált.ktg. (12) Ingatlan'!R27","v":0}]
[null,"13. Műszaki berendezések, gépek, járművek",null,{"$f":"'Ált. ktg. (13) műszaki ber.'!R27","v":0}]
[null,"14. Egyéb berendezések, gépek, járművek",null,{"$f":"'Ált.ktg. (14) egyéb ber.'!R27","v":0}]
[null,"Összes költségek",null,{"$f":"SUM(D22:F41)","v":0}]
[]
["Elszámolt támogatás összesen: ………………………Ft, azaz ………………………………………………Ft"]
[]
[]
["Dátum:"]
["kedvezményezett intézmény cégszerű aláírás (***)\n\n ……………………………………………………………………"]
[]
[null,null,null,"PH."]
[]
["* Az adott elszámolási időszak vége."]
["** Javasolt időszakhoz köthető sorszámot megadni. Pl. (xxxx -1/2020)"]
["*** Az aláírók nevét nyomtatott betűkkel is kérjük kitölteni."]

{"sheet":"(54-56) személyi+járulék","index":1,"n_rows":30,"n_cols":19,"rows_kept":30,"cut":false,"hidden":false,"merged":[[2,1,2,10],[3,1,3,10],[0,1,0,10],[8,7,8,9],[8,10,8,12],[6,0,6,18],[1,1,1,10],[8,13,8,15],[29,0,31,18],[26,0,26,18],[27,0,27,6],[8,0,8,1],[8,6,9,6],[8,2,8,3],[8,4,9,4],[8,5,9,5],[8,16,8,18]]}
["Kedvezményezett neve:"]
["Program és alprogram neve:"]
["Támogatói okirat száma:"]
["Az elszámolással érintett időszak kezdete és vége:"]
[]
[]
["54 -56 Személyi juttatások és járulékai"]
[]
["Projektben résztvevő dolgozók",null,"Az elszámolt időszak",null,"Az adott hónapban a projektre elszámolt munka-órák száma*","Pénzügyi teljesítés időpontja","Állandó dolgozó (Á), vagy megbí-zásos dolgozó (M)  (legördülő menű)","Projektre elszámolt bruttó bér (Ft)",null,null,"Projektre elszámolt egyéb juttatások (Ft) (pld. napidíj, stb.)",null,null,"Projektre elszámolt bruttó bér és juttatások összesen (Ft)",null,null,"Projektre elszámolt bruttó bér járuléka (Ft)"]
["neve","státusza (legördülő menű)\n","kezdete (dátum)","vége (dátum)",null,null,null,"Támogatás","Saját forrás","Egyéb forrás","Támogatás","Saját forrás","Egyéb forrás","Támogatás","Saját forrás","Egyéb forrás","Támogatás","Saját forrás","Egyéb forrás"]
{"$rows_empty":17}
["Összesen:",{"$nulls":6},{"$f":"SUM(H11:H26)","v":0},{"$f":"SUM(I11:I26)","v":0},0,0,0,0,{"$f":"SUM(N10:N26)","v":0},{"$f":"SUM(O10:O26)","v":0},0,0,0,0]
[]
["* Amennyiben a pályázati felhívás/útmutató megengedi a szabadság, betegszabadság, ünnepnap elszámolását a projekt terhére, úgy szíveskedjenek a feltüntetett munkaórákba beleszámítani ezek idejét is!"]

{"sheet":"(51) anyagköltség ","index":2,"n_rows":29,"n_cols":15,"rows_kept":29,"cut":false,"hidden":false,"merged":[[5,0,5,14],[28,0,28,7],[7,0,8,0],[7,1,8,1],[7,2,8,2],[7,3,8,3],[7,4,8,4],[7,5,8,5],[7,6,8,6],[7,7,8,7],[7,8,7,10],[7,11,7,14],[27,10,27,14],[2,4,2,11],[3,4,3,11],[0,0,0,3],[2,0,2,3],[3,0,3,3],[1,0,1,3],[0,4,0,11],[1,4,1,11]]}
["Kedvezményezett neve:"]
["Program és alprogram neve:"]
["Támogatói okirat száma:"]
["Az elszámolással érintett időszak kezdete és vége:"]
[]
["51 Anyagköltség"]
[]
["Sor-szám","Számviteli bizonylat kiállítójának neve","Adószáma","Számviteli bizonylat sorszáma","Kiállítás kelte","Teljesítés dátuma","Pénzügyi teljesítés időpontja","Gazdasági esemény rövid leírása","Összege (Ft)",null,null,"Projekt terhére elszámolt költségek (Ft)"]
["szám",{"$nulls":7},"Bruttó","Nettó","ÁFA","Támogatás","Saját forrás","Egyéb forrás","Összesen"]
{"$rows_empty":19}
[" Összesen",{"$nulls":7},{"$f":"SUM(I10:I27)","v":0},0,0,0,0,0,0]

{"sheet":"(52) igénybe vett szolg","index":3,"n_rows":29,"n_cols":15,"rows_kept":29,"cut":false,"hidden":false,"merged":[[1,0,1,3],[0,0,0,3],[0,4,0,11],[1,4,1,11],[28,0,28,7],[7,4,8,4],[7,5,8,5],[7,1,8,1],[7,0,8,0],[27,0,27,14],[7,8,7,10],[7,7,8,7],[7,6,8,6],[7,2,8,2],[7,3,8,3],[7,11,7,14],[2,0,2,3],[2,4,2,11],[3,0,3,3],[3,4,3,11],[5,0,5,14]]}
["Kedvezményezett neve:"]
["Program és alprogram neve:"]
["Támogatói okirat száma:"]
["Az elszámolással érintett időszak kezdete és vége:"]
[]
[" 52 Igénybe vett szolgáltatások"]
[]
["Sor-szám","Számviteli bizonylat kiállítójának neve","Adószáma","Számviteli bizonylat sorszáma","Kiállítás kelte","Teljesítés dátuma","Pénzügyi teljesítés időpontja","Gazdasági esemény rövid leírása","Összege (Ft)",null,null,"Projekt terhére elszámolt költségek (Ft)"]
["szám",{"$nulls":7},"Bruttó","Nettó","ÁFA","Támogatás","Saját forrás","Egyéb forrás","Összesen"]
{"$rows_empty":19}
[" Összesen",{"$nulls":7},{"$f":"SUM(I10:I27)","v":0},0,0,0,0,0,0]

{"sheet":"(53) egyéb szolgáltatások","index":4,"n_rows":29,"n_cols":15,"rows_kept":29,"cut":false,"hidden":false,"merged":[[28,0,28,7],[5,0,5,14],[7,0,8,0],[7,1,8,1],[7,2,8,2],[7,11,7,14],[7,7,8,7],[7,4,8,4],[7,8,7,10],[7,5,8,5],[7,3,8,3],[7,6,8,6],[0,0,0,3],[0,4,0,11],[3,0,3,3],[3,4,3,11],[1,0,1,3],[1,4,1,11],[2,0,2,3],[2,4,2,11]]}
["Kedvezményezett neve:"]
["Program és alprogram neve:"]
["Támogatói okirat száma:"]
["Az elszámolással érintett időszak kezdete és vége:"]
[]
["53 Egyéb szolgáltatások"]
[]
["Sor-szám","Számviteli bizonylat kiállítójának neve","Adószáma","Számviteli bizonylat sorszáma","Kiállítás kelte","Teljesítés dátuma","Pénzügyi teljesítés időpontja","Gazdasági esemény rövid leírása","Összege (Ft)",null,null,"Projekt terhére elszámolt költségek (Ft)"]
["szám",{"$nulls":7},"Bruttó","Nettó","ÁFA","Támogatás","Saját forrás","Egyéb forrás","Összesen"]
["1."]
["2."]
{"$rows_empty":17}
[" Összesen",{"$nulls":7},{"$f":"SUM(I10:I27)","v":0},0,0,0,0,0,0]

{"sheet":"(11) immat jav beszerz","index":5,"n_rows":27,"n_cols":18,"rows_kept":27,"cut":false,"hidden":false,"merged":[[5,0,5,17],[26,0,26,10],[7,9,8,9],[7,7,7,8],[7,10,8,10],[7,11,7,13],[7,0,8,0],[7,1,8,1],[7,2,8,2],[7,14,7,17],[25,0,25,17],[7,3,8,3],[7,4,8,4],[7,5,8,5],[7,6,8,6],[3,0,3,3],[0,4,0,14],[1,4,1,14],[2,4,2,14],[3,4,3,14],[1,0,1,3],[2,0,2,3],[0,0,0,3]]}
["Kedvezményezett neve:"]
["Program és alprogram neve:"]
["Támogatói okirat száma:"]
["Az elszámolással érintett időszak kezdete és vége:"]
[]
[" 11 Immateriális javak beszerzése"]
[]
["Sor-szám","Számviteli bizonylat kiállítójának neve","Adószáma","Számviteli bizonylat sorszáma","Kiállítás kelte","Teljesítés dátuma","Pénzügyi teljesítés időpontja","Amortizációnál az elszámolt időszak",null,"amortizá-ciós kulcs %","Gazdasági esemény rövid leírása","Összege (Ft)",null,null,"Projekt terhére elszámolt költségek (Ft)"]
["szám",{"$nulls":6},"kezdete (dátum)","vége (dátum)",null,null,"Bruttó","Nettó","ÁFA","Támogatás","Saját forrás","Egyéb forrás","Összesen"]
{"$rows_empty":17}
["Összesen",{"$nulls":10},{"$f":"SUM(L10:L26)","v":0},{"$f":"SUM(M10:M26)","v":0},0,0,0,0,0]

{"sheet":"(12) Ingatlan","index":6,"n_rows":27,"n_cols":18,"rows_kept":27,"cut":false,"hidden":false,"merged":[[7,10,8,10],[7,11,7,13],[0,0,0,3],[0,4,0,14],[1,0,1,3],[1,4,1,14],[7,14,7,17],[26,0,26,10],[2,0,2,3],[2,4,2,14],[3,0,3,3],[3,4,3,14],[7,0,8,0],[7,1,8,1],[7,2,8,2],[7,3,8,3],[7,4,8,4],[7,5,8,5],[7,6,8,6],[7,7,7,8],[7,9,8,9],[25,0,25,17],[5,0,5,17]]}
["Kedvezményezett neve:"]
["Program és alprogram neve:"]
["Támogatói okirat száma:"]
["Az elszámolással érintett időszak kezdete és vége:"]
[]
["12 Ingatlan"]
[]
["Sor-szám","Számviteli bizonylat kiállítójának neve","Adószáma","Számviteli bizonylat sorszáma","Kiállítás kelte","Teljesítés dátuma","Pénzügyi teljesítés időpontja","Amortizációnál az elszámolt időszak",null,"amortizá-ciós kulcs %","Gazdasági esemény rövid leírása","Összege (Ft)",null,null,"Projekt terhére elszámolt költségek (Ft)"]
["szám",{"$nulls":6},"kezdete (dátum)","vége (dátum)",null,null,"Bruttó","Nettó","ÁFA","Támogatás","Saját forrás","Egyéb forrás","Összesen"]
{"$rows_empty":17}
["Összesen",{"$nulls":10},{"$f":"SUM(L10:L26)","v":0},{"$f":"SUM(M10:M26)","v":0},0,0,0,0,0]

{"sheet":"(13) műszaki berendezések","index":7,"n_rows":27,"n_cols":18,"rows_kept":27,"cut":false,"hidden":false,"merged":[[3,0,3,3],[3,4,3,14],[5,0,5,17],[0,0,0,3],[0,4,0,14],[1,0,1,3],[1,4,1,14],[2,0,2,3],[2,4,2,14],[7,14,7,17],[25,0,25,17],[26,0,26,10],[7,10,8,10],[7,11,7,13],[7,0,8,0],[7,1,8,1],[7,2,8,2],[7,3,8,3],[7,4,8,4],[7,5,8,5],[7,6,8,6],[7,7,7,8],[7,9,8,9]]}
["Kedvezményezett neve:"]
["Program és alprogram neve:"]
["Támogatói okirat száma:"]
["Az elszámolással érintett időszak kezdete és vége:"]
[]
["13 Műszaki berendezések, gépek, járművek"]
[]
["Sor-szám","Számviteli bizonylat kiállítójának neve","Adószáma","Számviteli bizonylat sorszáma","Kiállítás kelte","Teljesítés dátuma","Pénzügyi teljesítés időpontja","Amortizációnál az elszámolt időszak",null,"amortizá-ciós kulcs %","Gazdasági esemény rövid leírása","Összege (Ft)",null,null,"Projekt terhére elszámolt költségek (Ft)"]
["szám",{"$nulls":6},"kezdete (dátum)","vége (dátum)",null,null,"Bruttó","Nettó","ÁFA","Támogatás","Saját forrás","Egyéb forrás","Összesen"]
{"$rows_empty":17}
["Összesen",{"$nulls":10},{"$f":"SUM(L10:L26)","v":0},{"$f":"SUM(M10:M26)","v":0},0,0,0,0,0]

{"sheet":"(14) egyéb berendezések","index":8,"n_rows":27,"n_cols":18,"rows_kept":27,"cut":false,"hidden":false,"merged":[[25,0,25,17],[5,0,5,17],[26,0,26,10],[7,10,8,10],[7,11,7,13],[7,0,8,0],[7,1,8,1],[7,2,8,2],[7,3,8,3],[7,4,8,4],[7,5,8,5],[7,6,8,6],[7,7,7,8],[7,9,8,9],[7,14,7,17],[2,0,2,3],[2,4,2,14],[3,0,3,3],[3,4,3,14],[0,0,0,3],[0,4,0,14],[1,0,1,3],[1,4,1,14]]}
["Kedvezményezett neve:"]
["Program és alprogram neve:"]
["Támogatói okirat száma:"]
["Az elszámolással érintett időszak kezdete és vége:"]
[]
["14 Egyéb  berendezések, felszerelések, járművek"]
[]
["Sor-szám","Számviteli bizonylat kiállítójának neve","Adószáma","Számviteli bizonylat sorszáma","Kiállítás kelte","Teljesítés dátuma","Pénzügyi teljesítés időpontja","Amortizációnál az elszámolt időszak",null,"amortizá-ciós kulcs %","Gazdasági esemény rövid leírása","Összege (Ft)",null,null,"Projekt terhére elszámolt költségek (Ft)"]
["szám",{"$nulls":6},"kezdete (dátum)","vége (dátum)",null,null,"Bruttó","Nettó","ÁFA","Támogatás","Saját forrás","Egyéb forrás","Összesen"]
{"$rows_empty":17}
["Összesen",{"$nulls":10},{"$f":"SUM(L10:L26)","v":0},{"$f":"SUM(M10:M26)","v":0},0,0,0,0,0]

{"sheet":"Ált.ktg. (54-56) személyi","index":9,"n_rows":30,"n_cols":19,"rows_kept":30,"cut":false,"hidden":false,"merged":[[0,1,0,10],[1,1,1,10],[2,1,2,10],[3,1,3,10],[6,0,6,18],[29,0,31,18],[8,7,8,9],[8,10,8,12],[8,13,8,15],[8,16,8,18],[26,0,26,18],[27,0,27,6],[8,0,8,1],[8,2,8,3],[8,4,9,4],[8,5,9,5],[8,6,9,6]]}
["Kedvezményezett neve:"]
["Program és alprogram neve:"]
["Támogatói okirat száma:"]
["Az elszámolással érintett időszak kezdete és vége:"]
[]
[]
["Általános költségek - 54 -56 Személyi juttatások és járulékai"]
[]
["Projektben résztvevő dolgozók",null,"Az elszámolt időszak",null,"Az adott hónapban a projektre elszámolt munka-órák száma*","Pénzügyi teljesítés időpontja","Állandó dolgozó (Á), vagy megbí-zásos dolgozó (M)  (legördülő menű)","Projektre elszámolt bruttó bér (Ft)",null,null,"Projektre elszámolt egyéb juttatások (Ft) (pld. napidíj, stb.)",null,null,"Projektre elszámolt bruttó bér és juttatások összesen (Ft)",null,null,"Projektre elszámolt bruttó bér járuléka (Ft)"]
["neve","státusza\n","kezdete (dátum)","vége (dátum)",null,null,null,"Támogatás","Saját forrás","Egyéb forrás","Támogatás","Saját forrás","Egyéb forrás","Támogatás","Saját forrás","Egyéb forrás","Támogatás","Saját forrás","Egyéb forrás"]
{"$rows_empty":17}
["Összesen:",{"$nulls":6},{"$f":"SUM(H11:H26)","v":0},{"$f":"SUM(I11:I26)","v":0},0,0,0,0,0,0,0,0,0,0]
[]
["* Amennyiben a pályázati felhívás/útmutató megengedi a szabadság, betegszabadság, ünnepnap elszámolását a projekt terhére, úgy szíveskedjenek a feltüntetett munkaórákba beleszámítani ezek idejét is!"]

{"sheet":"Ált.ktg. (51) anyagköltség","index":10,"n_rows":29,"n_cols":15,"rows_kept":29,"cut":false,"hidden":false,"merged":[[0,0,0,3],[1,0,1,3],[0,4,0,11],[1,4,1,11],[2,0,2,3],[2,4,2,11],[3,0,3,3],[3,4,3,11],[5,0,5,14],[7,11,7,14],[7,8,7,10],[28,0,28,7],[7,3,8,3],[7,4,8,4],[7,5,8,5],[7,6,8,6],[7,7,8,7],[7,0,8,0],[7,1,8,1],[7,2,8,2]]}
["Kedvezményezett neve:"]
["Program és alprogram neve:"]
["Támogatói okirat száma:"]
["Az elszámolással érintett időszak kezdete és vége:"]
[]
["Általános költségek- 51 Anyagköltség"]
[]
["Sor-szám","Számviteli bizonylat kiállítójának neve","Adószáma","Számviteli bizonylat sorszáma","Kiállítás kelte","Teljesítés dátuma","Pénzügyi teljesítés időpontja","Gazdasági esemény rövid leírása","Összege (Ft)",null,null,"Projekt terhére elszámolt költségek (Ft)"]
["szám",{"$nulls":7},"Bruttó","Nettó","ÁFA","Támogatás","Saját forrás","Egyéb forrás","Összesen"]
{"$rows_empty":19}
[" Összesen",{"$nulls":7},{"$f":"SUM(I10:I27)","v":0},0,0,0,0,0,0]

{"sheet":"Ált.ktg. (52) Igénybe vett szol","index":11,"n_rows":29,"n_cols":15,"rows_kept":29,"cut":false,"hidden":false,"merged":[[0,0,0,3],[1,0,1,3],[0,4,0,11],[1,4,1,11],[2,0,2,3],[2,4,2,11],[3,0,3,3],[3,4,3,11],[5,0,5,14],[7,11,7,14],[7,8,7,10],[28,0,28,7],[7,3,8,3],[7,4,8,4],[7,5,8,5],[7,6,8,6],[7,7,8,7],[7,0,8,0],[7,1,8,1],[7,2,8,2]]}
["Kedvezményezett neve:"]
["Program és alprogram neve:"]
["Támogatói okirat száma:"]
["Az elszámolással érintett időszak kezdete és vége:"]
[]
["  Általános költségek - 52 Igénybe vett szolgáltatások"]
[]
["Sor-szám","Számviteli bizonylat kiállítójának neve","Adószáma","Számviteli bizonylat sorszáma","Kiállítás kelte","Teljesítés dátuma","Pénzügyi teljesítés időpontja","Gazdasági esemény rövid leírása","Összege (Ft)",null,null,"Projekt terhére elszámolt költségek (Ft)"]
["szám",{"$nulls":7},"Bruttó","Nettó","ÁFA","Támogatás","Saját forrás","Egyéb forrás","Összesen"]
{"$rows_empty":19}
[" Összesen",{"$nulls":7},{"$f":"SUM(I10:I27)","v":0},0,0,0,0,0,0]

{"sheet":"Ált.ktg. (53) egyéb szolg.","index":12,"n_rows":29,"n_cols":15,"rows_kept":29,"cut":false,"hidden":false,"merged":[[0,0,0,3],[0,4,0,11],[1,0,1,3],[1,4,1,11],[2,0,2,3],[2,4,2,11],[7,7,8,7],[7,8,7,10],[7,11,7,14],[28,0,28,7],[3,0,3,3],[3,4,3,11],[5,0,5,14],[7,0,8,0],[7,1,8,1],[7,2,8,2],[7,3,8,3],[7,4,8,4],[7,5,8,5],[7,6,8,6]]}
["Kedvezményezett neve:"]
["Program és alprogram neve:"]
["Támogatói okirat száma:"]
["Az elszámolással érintett időszak kezdete és vége:"]
[]
["  Általános költségek - 53 Egyéb szolgáltatások"]
[]
["Sor-szám","Számviteli bizonylat kiállítójának neve","Adószáma","Számviteli bizonylat sorszáma","Kiállítás kelte","Teljesítés dátuma","Pénzügyi teljesítés időpontja","Gazdasági esemény rövid leírása","Összege (Ft)",null,null,"Projekt terhére elszámolt költségek (Ft)"]
["szám",{"$nulls":7},"Bruttó","Nettó","ÁFA","Támogatás","Saját forrás","Egyéb forrás","Összesen"]
{"$rows_empty":19}
[" Összesen",{"$nulls":7},{"$f":"SUM(I10:I27)","v":0},0,0,0,0,0,0]

{"sheet":"Ált.ktg. (11) immat","index":13,"n_rows":27,"n_cols":18,"rows_kept":27,"cut":false,"hidden":false,"merged":[[0,0,0,3],[0,4,0,14],[1,0,1,3],[1,4,1,14],[2,0,2,3],[2,4,2,14],[7,14,7,17],[25,0,25,17],[3,0,3,3],[3,4,3,14],[5,0,5,17],[7,0,8,0],[7,1,8,1],[7,2,8,2],[7,3,8,3],[7,4,8,4],[7,5,8,5],[7,6,8,6],[26,0,26,10],[7,7,7,8],[7,9,8,9],[7,10,8,10],[7,11,7,13]]}
["Kedvezményezett neve:"]
["Program és alprogram neve:"]
["Támogatói okirat száma:"]
["Az elszámolással érintett időszak kezdete és vége:"]
[]
["Általános költségek -  11 Immateriális javak beszerzése"]
[]
["Sor-szám","Számviteli bizonylat kiállítójának neve","Adószáma","Számviteli bizonylat sorszáma","Kiállítás kelte","Teljesítés dátuma","Pénzügyi teljesítés időpontja","Amortizációnál az elszámolt időszak",null,"amortizá-ciós kulcs %","Gazdasági esemény rövid leírása","Összege (Ft)",null,null,"Projekt terhére elszámolt költségek (Ft)"]
["szám",{"$nulls":6},"kezdete (dátum)","vége (dátum)",null,null,"Bruttó","Nettó","ÁFA","Támogatás","Saját forrás","Egyéb forrás","Összesen"]
{"$rows_empty":17}
["Összesen",{"$nulls":10},{"$f":"SUM(L10:L26)","v":0},{"$f":"SUM(M10:M26)","v":0},0,0,0,0,0]

{"sheet":"Ált.ktg. (12) Ingatlan","index":14,"n_rows":27,"n_cols":18,"rows_kept":27,"cut":false,"hidden":false,"merged":[[7,10,8,10],[7,11,7,13],[0,0,0,3],[0,4,0,14],[1,0,1,3],[1,4,1,14],[7,14,7,17],[26,0,26,10],[2,0,2,3],[2,4,2,14],[3,0,3,3],[3,4,3,14],[7,0,8,0],[7,1,8,1],[7,2,8,2],[7,3,8,3],[7,4,8,4],[7,5,8,5],[7,6,8,6],[7,7,7,8],[7,9,8,9],[25,0,25,17],[5,0,5,17]]}
["Kedvezményezett neve:"]
["Program és alprogram neve:"]
["Támogatói okirat száma:"]
["Az elszámolással érintett időszak kezdete és vége:"]
[]
["Általános költségek - 12 Ingatlan"]
[]
["Sor-szám","Számviteli bizonylat kiállítójának neve","Adószáma","Számviteli bizonylat sorszáma","Kiállítás kelte","Teljesítés dátuma","Pénzügyi teljesítés időpontja","Amortizációnál az elszámolt időszak",null,"amortizá-ciós kulcs %","Gazdasági esemény rövid leírása","Összege (Ft)",null,null,"Projekt terhére elszámolt költségek (Ft)"]
["szám",{"$nulls":6},"kezdete (dátum)","vége (dátum)",null,null,"Bruttó","Nettó","ÁFA","Támogatás","Saját forrás","Egyéb forrás","Összesen"]
{"$rows_empty":17}
["Összesen",{"$nulls":10},{"$f":"SUM(L10:L26)","v":0},{"$f":"SUM(M10:M26)","v":0},0,0,0,0,0]

{"sheet":"Ált. ktg. (13) műszaki ber.","index":15,"n_rows":27,"n_cols":18,"rows_kept":27,"cut":false,"hidden":false,"merged":[[0,0,0,3],[0,4,0,14],[1,0,1,3],[1,4,1,14],[2,0,2,3],[2,4,2,14],[7,14,7,17],[25,0,25,17],[3,0,3,3],[3,4,3,14],[5,0,5,17],[7,0,8,0],[7,1,8,1],[7,2,8,2],[7,3,8,3],[7,4,8,4],[7,5,8,5],[7,6,8,6],[26,0,26,10],[7,7,7,8],[7,9,8,9],[7,10,8,10],[7,11,7,13]]}
["Kedvezményezett neve:"]
["Program és alprogram neve:"]
["Támogatói okirat száma:"]
["Az elszámolással érintett időszak kezdete és vége:"]
[]
["Általános költségek - 13 Műszaki berendezések, gépek, járművek"]
[]
["Sor-szám","Számviteli bizonylat kiállítójának neve","Adószáma","Számviteli bizonylat sorszáma","Kiállítás kelte","Teljesítés dátuma","Pénzügyi teljesítés időpontja","Amortizációnál az elszámolt időszak",null,"amortizá-ciós kulcs %","Gazdasági esemény rövid leírása","Összege (Ft)",null,null,"Projekt terhére elszámolt költségek (Ft)"]
["szám",{"$nulls":6},"kezdete (dátum)","vége (dátum)",null,null,"Bruttó","Nettó","ÁFA","Támogatás","Saját forrás","Egyéb forrás","Összesen"]
{"$rows_empty":17}
["Összesen",{"$nulls":10},{"$f":"SUM(L10:L26)","v":0},{"$f":"SUM(M10:M26)","v":0},0,0,0,0,0]

{"sheet":"Ált.ktg. (14) egyéb ber.","index":16,"n_rows":27,"n_cols":18,"rows_kept":27,"cut":false,"hidden":false,"merged":[[0,0,0,3],[0,4,0,14],[1,0,1,3],[1,4,1,14],[2,0,2,3],[2,4,2,14],[7,14,7,17],[25,0,25,17],[3,0,3,3],[3,4,3,14],[5,0,5,17],[7,0,8,0],[7,1,8,1],[7,2,8,2],[7,3,8,3],[7,4,8,4],[7,5,8,5],[7,6,8,6],[26,0,26,10],[7,7,7,8],[7,9,8,9],[7,10,8,10],[7,11,7,13]]}
["Kedvezményezett neve:"]
["Program és alprogram neve:"]
["Támogatói okirat száma:"]
["Az elszámolással érintett időszak kezdete és vége:"]
[]
["Általános költségek - 14 Egyéb  berendezések, felszerelések, járművek"]
[]
["Sor-szám","Számviteli bizonylat kiállítójának neve","Adószáma","Számviteli bizonylat sorszáma","Kiállítás kelte","Teljesítés dátuma","Pénzügyi teljesítés időpontja","Amortizációnál az elszámolt időszak",null,"amortizá-ciós kulcs %","Gazdasági esemény rövid leírása","Összege (Ft)",null,null,"Projekt terhére elszámolt költségek (Ft)"]
["szám",{"$nulls":6},"kezdete (dátum)","vége (dátum)",null,null,"Bruttó","Nettó","ÁFA","Támogatás","Saját forrás","Egyéb forrás","Összesen"]
{"$rows_empty":17}
["Összesen",{"$nulls":10},{"$f":"SUM(L10:L26)","v":0},{"$f":"SUM(M10:M26)","v":0},0,0,0,0,0]

{"sheet":"Költségátcsoportosítás tábla","index":17,"n_rows":45,"n_cols":6,"rows_kept":45,"cut":false,"hidden":false,"merged":[[7,2,7,5],[8,2,8,5],[9,2,9,5],[30,1,30,2],[31,1,31,2],[44,0,44,2],[46,0,46,5],[47,0,47,1],[33,0,33,5],[34,0,39,5],[21,0,30,0],[21,1,21,2],[22,1,22,2],[23,1,23,2],[24,1,24,2],[25,1,25,2],[26,1,26,2],[27,1,27,2],[28,1,28,2],[29,1,29,2],[15,1,15,2],[16,1,16,2],[17,1,17,2],[18,1,18,2],[19,1,19,2],[20,1,20,2],[8,0,8,1],[9,0,9,1],[10,0,10,2],[11,0,20,0],[11,1,11,2],[12,1,12,2],[13,1,13,2],[14,1,14,2],[7,0,7,1],[0,0,0,5],[1,0,1,2],[3,0,3,5],[5,0,5,2],[6,0,6,1],[6,2,6,5]]}
["Egy példányban kitöltve, eredeti aláírással és bélyegzéssel ellátva kell benyújtani."]
[]
[]
["Költségátcsoportosítás"]
[]
[]
["Kedvezményezett intézmény neve:"]
["Program és alprogram neve:"]
["Projekt azonosító:"]
["Elszámolással érintett időszak kezdete és vége"]
["Költség fajta (Ft-ban)",null,null,"Tervezett ","Tényleges","Eltérés"]
["Kutatás közvetlen költsége","54. Bérköltség",null,null,{"$f":"Költségösszesítő!D22","v":0},{"$f":"D12-E12","v":0}]
[null,"55. Személyi jellegű egyéb kifizetések - egyéb",null,null,{"$f":"Költségösszesítő!D23","v":0},{"$f":"D13-E13","v":0}]
[null,"56. Bérjárulék",null,null,{"$f":"Költségösszesítő!D24","v":0},0]
[null,"51. Anyagköltség",null,null,{"$f":"Költségösszesítő!D25","v":0},0]
[null,"52. Igénybe vett szolgáltatások költségei",null,null,{"$f":"Költségösszesítő!D26","v":0},0]
[null,"53. Egyéb szolgáltatások költségei",null,null,{"$f":"Költségösszesítő!D27","v":0},0]
[null,"11. Immateriális javak",null,null,{"$f":"Költségösszesítő!D28","v":0},0]
[null,"12. Ingatlan",null,null,{"$f":"Költségösszesítő!D29","v":0},0]
[null,"13. Műszaki berendezések, gépek, járművek",null,null,{"$f":"Költségösszesítő!D30","v":0},0]
[null,"14. Egyéb berendezések, gépek, járművek",null,null,{"$f":"Költségösszesítő!D31","v":0},0]
["Kutatás közvetett költsége (Általános költségek)","54. Bérköltség",null,null,{"$f":"Költségösszesítő!D32","v":0},0]
[null,"55. Személyi jellegű egyéb kifizetések - egyéb",null,null,{"$f":"Költségösszesítő!D33","v":0},0]
[null,"56. Bérjárulék",null,null,{"$f":"Költségösszesítő!D34","v":0},0]
[null,"51. Anyagköltség",null,null,{"$f":"Költségösszesítő!D35","v":0},0]
[null,"52. Igénybe vett szolgáltatások költségei",null,null,{"$f":"Költségösszesítő!D36","v":0},0]
[null,"53. Egyéb szolgáltatások költségei",null,null,{"$f":"Költségösszesítő!D37","v":0},0]
[null,"11. Immateriális javak",null,null,{"$f":"Költségösszesítő!D38","v":0},0]
[null,"12. Ingatlan",null,null,{"$f":"Költségösszesítő!D39","v":0},0]
[null,"13. Műszaki berendezések, gépek, járművek",null,null,{"$f":"Költségösszesítő!D40","v":0},0]
[null,"14. Egyéb berendezések, gépek, járművek",null,null,{"$f":"Költségösszesítő!D41","v":0},0]
[null,"Összes költségek",null,{"$f":"SUM(D12:D31)","v":0},{"$f":"Költségösszesítő!D42","v":0},0]
[]
["Költségtácsoportosítás indoklása"]
{"$rows_empty":9}
["Dátum:"]
["kedvezményezett intézmény cégszerű aláírás (***)\n\n ……………………………………………………………………"]

{"sheet":"(LNY) lemondó nyilatkozat","index":18,"n_rows":31,"n_cols":2,"rows_kept":31,"cut":false,"hidden":false,"merged":[[6,0,6,1],[15,0,15,1],[30,0,30,1]]}
[]
["Egy példányban kitöltve, eredeti aláírással és bélyegzéssel ellátva kell benyújtani."]
[]
[]
[]
[]
["Lemondó Nyilatkozat"]
[]
[]
[]
["Kedvezményezett neve",{"$f":"+'(54-56) személyi+járulék'!G1","v":0}]
["Szerződésszám",{"$f":"+'(54-56) személyi+járulék'!G3","v":0}]
["Mérföldkő dátuma:",{"$f":"+'(54-56) személyi+járulék'!G4","v":"00:00:00"}]
[]
[]
["Alulírott <név>, mint a <kedvezményezett megnevezése> társaság/szervezet cégjegyzésre jogosult vezetője nyilatkozom, hogy a fenti azonosító számú projekt megvalósításához a megítélt támogatásból összesen <a ténylegesen elszámolt támogatás összege> Ft került felhasználásra. A fennmaradó <a megítélt és a tényleges támogatás különbsége> Ft támogatást a továbbiakban nem kívánom igénybe venni, így arról lemondok. "]
[]
[]
["Hely, dátum"]
[]
[]
[]
[null,"………………………………"]
[null,"Kedvezményezett cégszerű *"]
[null,"aláírása"]
[null,"Ph."]
[]
[]
[]
[]
["* Az aláírók nevét nyomtatott betűkkel is kérjük kitölteni"]

{"sheet":"(NYF)nyilatkozat függetlenségre","index":19,"n_rows":31,"n_cols":2,"rows_kept":31,"cut":false,"hidden":false,"merged":[[6,0,6,1],[15,0,15,1],[30,0,30,1]]}
[]
["Egy példányban kitöltve, eredeti aláírással és bélyegzéssel ellátva kell benyújtani."]
[]
[]
[]
[]
["Nyilatkozat az összeférhetetlenségre vonatkozóan"]
[]
[]
[]
["Kedvezményezett neve"]
["Szerződésszám"]
["Mérföldkő dátuma:"]
[]
[]
["Alulírott <név>, mint a <kedvezményezett megnevezése> társaság/szervezet  cégjegyzésre jogosult vezetője büntető jogi felelősségem tudatában nyilatkozom, hogy a fenti azonosító számú támogatási szerződés alapján finanszírozott projekt megvalósításához igénybe vett szolgáltatások és beszerzések a szokásos piaci feltételeknek megfelelően, független felek között, a hivatkozott támogatási szerződésben, valamint ennek mellékleteiben foglalt előírások szerint jöttek létre."]
[]
[]
["Hely, dátum"]
[]
[]
[]
[null,"………………………………"]
[null,"Kedvezményezett cégszerű *"]
[null,"aláírása"]
[null,"Ph."]
[]
[]
[]
[]
["* Az aláírók nevét nyomtatott betűkkel is kérjük kitölteni"]

{"sheet":"nyilatkozat a kettős elszámolás","index":20,"n_rows":31,"n_cols":2,"rows_kept":31,"cut":false,"hidden":false,"merged":[[6,0,6,1],[15,0,15,1],[30,0,30,1]]}
[]
["Egy példányban kitöltve, eredeti aláírással és bélyegzéssel ellátva kell benyújtani."]
[]
[]
[]
[]
["Nyilatkozat a kettős finanszírozás elkerüléséről"]
[]
[]
[]
["Kedvezményezett neve"]
["Szerződésszám"]
["Mérföldkő dátuma:"]
[]
[]
["Alulírott <név>, mint a <Kedvezményezett intézmény megnevezése> gazdasági vezetője/ cégjegyzésre jogosult vezetője nyilatkozom, hogy a fenti azonosító számú projekt megvalósításához a számlaösszesítőben szereplő azon tételek esetében, ahol raktári készlet felhasználálás valamint eszközök és  immateriális javak amortiációjának elszámolása történt, a beszerzéshez kapcsolódóan korábban sem EU-s, sem hazai támogatás nem kapcsolódik."]
[]
[]
["Hely, dátum"]
[]
[]
[]
[null,"………………………………"]
[null,"Kedvezményezett cégszerű *"]
[null,"aláírása"]
[null,"Ph."]
[]
[]
[]
[]
["* Az aláírók nevét nyomtatott betűkkel is kérjük kitölteni"]

{"sheet":"támogatás típusai","index":21,"n_rows":14,"n_cols":3,"rows_kept":14,"cut":false,"hidden":true,"merged":[[1,1,1,2],[4,2,5,2],[7,2,11,2]]}
[]
["támogatás típus rövídítése","támogatás típusa"]
[]
["K+F/Alap.","Alapkutatás","Kutatás-fejlesztési projekthez nyújtott támogatás "]
["K+F/Alkalm.","Alkalmazott (ipari) kutatás"]
["K+F/Kis.fejl.","Kísérleti fejlesztés"]
["D.M./Közbesz.","Közbeszerzés","De minimis támogatás"]
["D.M./Koord.","Koordinációs költség"]
["D.M./Tájék.","Tájékoztatási költség"]
["D.M./Piac","Piacra jutáshoz kapcsolódó költségek"]
["D.M./Iparjog","Iparjogvédelemmel kapcsolatos költségek"]
["D.M./Rezsi","Általános (rezsi) költségek"]
["Kut.infra.- b.r.","Kutatási infrastruktúrához nyújtott beruházási támogatás","Kutatási infrastruktúrához nyújtott beruházási támogatás"]
["Nem állami támogatás","Nem állami támogatás"]